fUST/lending_fUST_20250616
["ID","MTS","AMOUNT","RATE_DAILY","PERIOD"]
[366022431,1750021636163,-229.86375354,0.00021344,2]
[366022432,1750021636186,-300.0,0.00021348,2]
[366022433,1750021636207,-430.0,0.00021349,2]
[366022434,1750021636229,-460.0,0.00021349,2]
[366022435,1750021636250,-184.54495475,0.00021349,2]
[366022436,1750021636273,-460.0,0.00021349,2]
[366022437,1750021636293,-400.0,0.00021364,2]
[366022438,1750021636315,-460.0,0.00021623,2]
[366022439,1750021636336,-300.0,0.0002165,2]
[366022440,1750021636358,-1473.93825281,0.00021651,2]
[366022441,1750021639125,-300.9579837,0.00021064,3]
[366022442,1750021639148,-4012.23609488,0.00021651,2]
[366022443,1750021644085,-11796.49204767,0.00021651,2]
[366022444,1750021644108,-168.0,0.00021651,2]
[366022445,1750021644130,-1037.23,0.0002176,2]
[366022446,1750021644154,-272.3753402,0.0002177,2]
[366022447,1750021644175,-169.00545533,0.0002178,2]
[366022448,1750021644196,-500.0,0.0002188,2]
[366022449,1750021644220,-500.0,0.0002188,2]
[366022450,1750021644243,-500.0,0.0002188,2]
[366022451,1750021644263,-500.0,0.0002188,2]
[366022452,1750021644439,-500.0,0.0002188,2]
[366022453,1750021644463,-290.75400898,0.0002188,2]
[366022454,1750021644483,-414.59588258,0.0002188,2]
[366022455,1750021644507,-500.0,0.0002188,2]
[366022456,1750021644529,-500.0,0.0002188,2]
[366022457,1750021644551,-500.0,0.0002188,2]
[366022458,1750021644571,-500.0,0.0002188,2]
[366022459,1750021644595,-500.0,0.0002188,2]
[366022460,1750021644615,-92.59175386,0.0002188,2]
[366022461,1750021648172,-347.12951376,0.0002188,2]
[366022462,1750021648194,-542.24254494,0.0002188,2]
[366022463,1750021648215,-500.0,0.0002188,2]
[366022464,1750021648236,-500.0,0.0002188,2]
[366022465,1750021648260,-500.0,0.0002188,2]
[366022466,1750021648282,-500.0,0.0002188,2]
[366022467,1750021648305,-500.0,0.0002188,2]
[366022468,1750021648327,-500.0,0.0002188,2]
[366022469,1750021648348,-500.0,0.0002188,2]
[366022470,1750021648371,-500.0,0.0002188,2]
[366022471,1750021648394,-202.5,0.0002188,2]
[366022472,1750021648417,-500.0,0.0002188,2]
[366022473,1750021648439,-448.42474342,0.0002188,2]
[366022474,1750021648461,-618.02548783,0.0002188,2]
[366022475,1750021648483,-304.01233809,0.0002188,2]
[366022476,1750021648507,-258.64037382,0.0002188,2]
[366022477,1750021648528,-372.30029517,0.0002188,2]
[366022478,1750021648552,-500.0,0.0002188,2]
[366022479,1750021648576,-190.85833153,0.0002188,2]
[366022480,1750021648600,-446.46973032,0.0002188,2]
[366022481,1750021648623,-460.0,0.00021897,2]
[366022482,1750021648647,-160.0,0.00021999,2]
[366022483,1750021648668,-500.0,0.00022125,2]
[366022484,1750021648691,-168.0,0.00022492,2]
[366022485,1750021648715,-460.0,0.0002251,2]
[366022486,1750021648740,-126.35852325,0.0002251,2]
[366022487,1750021652125,-333.64147675,0.0002251,2]
[366022488,1750021652152,-460.0,0.0002251,2]
[366022489,1750021652178,-460.0,0.0002251,2]
[366022490,1750021652200,-460.0,0.0002251,2]
[366022491,1750021652224,-460.0,0.0002251,2]
[366022492,1750021652248,-460.0,0.0002251,2]
[366022493,1750021652269,-199.45707382,0.0002251,2]
[366022494,1750021652293,-500.0,0.0002251,2]
[366022495,1750021652317,-330.42967433,0.0002251,2]
[366022496,1750021652337,-964.0,0.00022511,2]
[366022497,1750021652358,-2160.0,0.00022511,2]
[366022498,1750021652378,-653.0,0.00022511,2]
[366022499,1750021652402,-406.0,0.00022511,2]
[366022500,1750021652422,-169.00545533,0.00022541,2]
[366022501,1750021652443,-150.0,0.00022698,2]
[366022502,1750021652463,-160.0,0.00022751,3]
[366022503,1750021652487,-460.0,0.00022784,2]
[366022504,1750021652514,-460.0,0.00022784,2]
[366022505,1750021652539,-460.0,0.00022784,2]
[366022506,1750021652565,-596.28,0.00022784,2]
[366022507,1750021652591,-460.0,0.00022784,2]
[366022508,1750021652615,-460.0,0.00022784,2]
[366022509,1750021652638,-168.0,0.00022893,2]
[366022510,1750021652668,-206.14978165,0.000229,8]
[366022511,1750021652690,-260.763,0.000229,2]
[366022512,1750021652713,-168.0,0.0002293,2]
[366022513,1750021652742,-206.14978156,0.00022969,8]
[366022514,1750021652763,-250.0,0.00022991,2]
[366022515,1750021652792,-206.14978156,0.00023038,8]
[366022516,1750021652815,-460.0,0.00023058,2]
[366022517,1750021652838,-252.32,0.00023058,2]
[366022518,1750021652860,-323.58,0.00023058,2]
[366022519,1750021652883,-205.84,0.00023058,2]
[366022520,1750021652904,-460.0,0.00023106,2]
[366022521,1750021652927,-460.0,0.00023106,2]
[366022522,1750021652947,-440.0,0.00023106,2]
[366022523,1750021652978,-206.14978156,0.00023107,8]
[366022524,1750021653008,-206.14978156,0.00023176,8]
[366022525,1750021653034,-420.0,0.00023214,2]
[366022526,1750021653063,-206.14978156,0.00023245,8]
[366022527,1750021653085,-169.00545533,0.00023303,2]
[366022528,1750021653114,-206.14978156,0.00023314,9]
[366022529,1750021653138,-460.0,0.00023332,2]
[366022530,1750021653163,-500.0,0.00023356,2]
[366022531,1750021653186,-168.0,0.00023357,2]
[366022532,1750021653208,-160.0,0.00023369,2]
[366022533,1750021653228,-460.0,0.0002338,2]
[366022534,1750021653252,-460.0,0.0002338,2]
[366022535,1750021653282,-206.14978156,0.00023383,9]
[366022536,1750021653305,-156.0289342,0.00023425,2]
[366022537,1750021653326,-424.47602138,0.00023439,2]
[366022538,1750021653347,-28.65161189,0.00023439,2]
[366022539,1750021749316,-150.0,0.00020958,2]
[366022540,1750021749348,-1024.03,0.00021812,2]
[366022541,1750021749376,-460.0,0.0002188,2]
[366022542,1750021758761,188.9888327,0.00021542,2]
[366022543,1750021771816,424.47602138,0.00021812,2]
[366022545,1750021782112,470.38,0.0002188,2]
[366022547,1750021822679,1011.0,0.0002192,2]
[366022617,1750021832673,-1063.8,0.000235,2]
[366022620,1750021832685,-100.58,0.000235,2]
[366022622,1750021832695,-162.127284,0.00023622,2]
[366022624,1750021832705,-460.0,0.00023654,2]
[366022626,1750021832714,-156.0289342,0.00023726,2]
[366022628,1750021832724,-207.4,0.0002378,2]
[366022630,1750021832733,-581.30077203,0.00023799,2]
[366022632,1750021832742,-243.4287035,0.00023799,2]
[366022634,1750021832752,-152.47781057,0.00023799,2]
[366022636,1750021832761,-179.78060976,0.00023799,2]
[366022638,1750021832771,-12500.0,0.000238,3]
[366022640,1750021832781,-10343.20208532,0.000238,3]
[366022653,1750021832891,-1236.34123363,0.000238,3]
[366022655,1750021832901,-424.47602138,0.000238,3]
[366022657,1750021832910,-168.0,0.00023855,2]
[366022659,1750021832920,-1559.0972894,0.00023889,2]
[366022770,1750021838572,-76296.36249778,0.00023889,2]
[366022773,1750021838585,-1225.42192155,0.00023889,2]
[366022778,1750021838598,-2813.0197704,0.00023889,2]
[366022780,1750021838611,-2800.15281666,0.00023889,2]
[366023068,1750021841664,-2191.74188396,0.00023889,2]
[366023071,1750021841676,-2502.39999994,0.00023889,2]
[366023268,1750021843496,-6981.26090031,0.00023889,2]
[366023270,1750021843506,-24609.43472114,0.0002389,2]
[366023276,1750021843557,-319.19266632,0.0002389,2]
[366023585,1750021846724,-656.51383207,0.0002389,2]
[366023588,1750021846737,-4062.24239476,0.0002389,2]
[366023590,1750021846749,-2032.33,0.0002389,2]
[366023592,1750021846760,-399.99760524,0.0002389,2]
[366023642,1750021847220,-1178.32909801,0.0002389,2]
[366027970,1750021903714,998.13,0.00021895,2]
[366027972,1750021929234,165.0,0.00022,2]
[366029324,1750022152097,158.980707,0.00013699,2]
[366029375,1750022730135,-1006.97863133,0.00020817,2]
[366029385,1750022826130,-664.35952857,0.00020817,2]
[366029386,1750022826153,-168.0,0.00021128,2]
[366029387,1750022826176,-168.0,0.00021195,2]
[366029388,1750022826200,-168.0,0.00021452,2]
[366029389,1750022826222,-222.24913302,0.00021456,2]
[366029390,1750022826245,-530.0,0.00021506,2]
[366029391,1750022826266,-835.55256958,0.0002152,2]
[366029392,1750022826289,-530.0,0.00021535,2]
[366029393,1750022826310,-1535.8207713,0.00021542,2]
[366029394,1750022826332,-530.0,0.00021553,2]
[366029395,1750022826355,-530.0,0.00021599,2]
[366029396,1750022826377,-161.0,0.00021758,2]
[366029397,1750022826400,-985.43,0.00021759,2]
[366029398,1750022826421,-150.0,0.0002179,2]
[366029399,1750022826443,-300.0,0.00021877,2]
[366029400,1750022826464,-300.0,0.00021879,2]
[366029401,1750022826485,-460.0,0.0002188,2]
[366029402,1750022826506,-179.3992953,0.00021931,2]
[366029403,1750022826529,-530.0,0.00022374,2]
[366029404,1750022826549,-229.86375354,0.00022476,2]
[366029405,1750022826571,-300.0,0.00022476,2]
[366029406,1750022826594,-225.0,0.00022477,2]
[366029407,1750022826614,-250.0,0.00022477,2]
[366029408,1750022826636,-160.0,0.00022478,2]
[366029409,1750022826658,-460.35625325,0.00022812,2]
[366029410,1750022826680,-460.0,0.00022812,2]
[366029411,1750022826703,-460.0,0.00022812,2]
[366029412,1750022826725,-460.0,0.00022812,2]
[366029413,1750022826908,-460.0,0.00022812,2]
[366029414,1750022826932,-460.0,0.00022812,2]
[366029415,1750022826954,-511.45340538,0.00022813,2]
[366029416,1750022826977,-272.725,0.00022813,2]
[366029417,1750022826999,-500.0,0.0002282,2]
[366029418,1750022827031,-206.14978156,0.000229,8]
[366029419,1750022827054,-530.0,0.00022941,2]
[366029420,1750022827080,-530.0,0.00022943,2]
[366029421,1750022827102,-902.69482947,0.00022956,2]
[366029422,1750022829080,-61.30517053,0.00022956,2]
[366029423,1750022829102,-653.0,0.00022956,2]
[366029424,1750022829123,-2160.0,0.00022956,2]
[366029425,1750022829144,-406.0,0.00022956,2]
[366029426,1750022829167,-530.0,0.00022988,2]
[366029427,1750022829198,-206.14978156,0.00022995,8]
[366029428,1750022829219,-492.74,0.00023086,2]
[366029429,1750022829248,-206.14978156,0.0002309,8]
[366029430,1750022829277,-206.14978156,0.00023186,8]
[366029431,1750022829306,-206.14978156,0.00023281,8]
[366029432,1750022829327,-573.6747916,0.00023288,2]
[366029433,1750022829348,-997.99531911,0.00023368,2]
[366029434,1750022829378,-206.14978156,0.00023376,9]
[366029435,1750022829399,-500.0,0.000234,2]
[366029436,1750022829430,-206.14978156,0.00023471,9]
[366029437,1750022829451,-1047.94,0.000235,2]
[366029438,1750022829481,-202.14169088,0.00023567,9]
[366029449,1750022955143,-536.51533097,0.00019,20]
[366029450,1750022955165,-150.0,0.00021268,2]
[366029451,1750022955185,-11422.09938303,0.000215,2]
[366029452,1750022955207,-972.89,0.00021873,2]
[366029454,1750022960638,835.55256958,0.000215,2]
[366029457,1750023017537,960.5,0.00021917,2]
[366029510,1750023032778,-1449.61455269,0.00022734,2]
[366029586,1750023038645,-630.77062861,0.00022734,2]
[366029587,1750023038655,-460.0,0.00022783,2]
[366029588,1750023038664,-460.0,0.00022783,2]
[366029589,1750023038674,-460.0,0.00022783,2]
[366029590,1750023038683,-460.0,0.00022783,2]
[366029591,1750023038692,-460.0,0.00022783,2]
[366029592,1750023038702,-300.0,0.00022811,2]
[366029593,1750023038712,-460.0,0.00022812,2]
[366029594,1750023038721,-460.0,0.00022812,2]
[366029595,1750023038730,-460.0,0.00022812,2]
[366029596,1750023038739,-460.0,0.00022812,2]
[366029597,1750023038749,-460.0,0.00022812,2]
[366029598,1750023038758,-460.0,0.00022812,2]
[366029599,1750023038767,-964.0,0.00023047,2]
[366029600,1750023038777,-460.0,0.00023057,2]
[366029601,1750023038786,-460.0,0.00023331,2]
[366029602,1750023038795,-943.15,0.000235,2]
[366029603,1750023038805,-530.0,0.0002358,2]
[366029604,1750023038814,-460.0,0.00023605,2]
[366029605,1750023038823,-1.49428279,0.00023639,2]
[366029606,1750023038835,-205.90571721,0.00023639,2]
[366029607,1750023038845,-151.0,0.00023653,2]
[366029608,1750023038855,-151.0,0.00023653,2]
[366029609,1750023038864,-58.13428279,0.00023653,2]
[366029622,1750023040794,-401.86571721,0.00023653,2]
[366029623,1750023040804,-460.0,0.00023653,2]
[366029624,1750023040813,-460.0,0.00023653,2]
[366029625,1750023040822,-460.0,0.00023653,2]
[366029626,1750023040833,-151.0,0.0002368,2]
[366029627,1750023040842,-151.0,0.0002368,2]
[366029628,1750023040852,-530.0,0.00023698,7]
[366029629,1750023040862,-151.0,0.00023708,2]
[366029630,1750023040871,-151.0,0.00023708,2]
[366029631,1750023040881,-151.0,0.00023735,2]
[366029632,1750023040890,-158.09802352,0.00023735,2]
[366029633,1750023040900,-242.33704988,0.00023763,2]
[366029634,1750023040909,-530.0,0.00023763,2]
[366029635,1750023040918,-420.0,0.00023778,2]
[366029636,1750023040928,-423.24721018,0.00023799,2]
[366029637,1750023040938,-460.0,0.00023799,2]
[366029638,1750023040947,-581.24753853,0.00023799,2]
[366029639,1750023040956,-621.1847046,0.00023799,2]
[366029640,1750023040971,-17343.48643138,0.000238,5]
[366029641,1750023040981,-180.28427248,0.00023804,2]
[366029642,1750023040990,-460.0,0.00023879,2]
[366029643,1750023041000,-22881.13951668,0.0002389,2]
[366029644,1750023041010,-206.43607377,0.000239,10]
[366029645,1750023041019,-1093.89,0.00023904,2]
[366029646,1750023041028,-1921.01,0.00023909,2]
[366029647,1750023041038,-460.0,0.00023927,2]
[366029648,1750023041047,-460.0,0.00023927,2]
[366029649,1750023041056,-460.0,0.00023927,2]
[366029650,1750023041065,-460.0,0.00023927,2]
[366029651,1750023041075,-180.28427245,0.0002395,2]
[366029652,1750023041084,-158.980707,0.00023973,2]
[366029653,1750023041094,-206.43607375,0.00023977,10]
[366029654,1750023041103,-500.0,0.00024,2]
[366029655,1750023041112,-168.0,0.00024035,2]
[366029656,1750023041122,-500.0,0.0002405,2]
[366029657,1750023041132,-206.43607375,0.00024054,10]
[366029658,1750023041142,-460.0,0.00024073,2]
[366029659,1750023041151,-180.28427245,0.00024096,2]
[366029660,1750023041160,-206.43607375,0.00024131,10]
[366029661,1750023041170,-168.0,0.00024143,2]
[366029662,1750023041179,-460.0,0.00024153,2]
[366029663,1750023041188,-498.36164938,0.00024201,2]
[366029664,1750023041197,-443.97,0.00024201,2]
[366029665,1750023041207,-206.43607375,0.00024208,10]
[366029666,1750023041216,-180.28427245,0.00024242,2]
[366029667,1750023041226,-206.43607375,0.00024285,10]
[366029668,1750023041235,-1047.385804,0.00024303,3]
[366029669,1750023041244,-460.0,0.00024347,2]
[366029670,1750023041253,-206.43607375,0.00024362,11]
[366029671,1750023041263,-180.28427245,0.00024388,2]
[366029672,1750023041272,-249.62,0.00024427,2]
[366029673,1750023041281,-206.43607375,0.00024438,11]
[366029674,1750023041291,-206.43607375,0.00024515,11]
[366029675,1750023041300,-2200.0,0.00024518,2]
[366029676,1750023041310,-180.28427245,0.00024534,2]
[366029677,1750023041319,-206.43607375,0.00024592,11]
[366029678,1750023041328,-1000.0,0.00024598,2]
[366029679,1750023041338,-460.0,0.00024621,2]
[366029680,1750023041347,-1000.0,0.00024658,2]
[366029681,1750023041356,-1000.0,0.00024658,2]
[366029682,1750023041366,-1000.0,0.00024658,2]
[366029683,1750023041375,-1000.0,0.00024658,2]
[366029684,1750023041384,-1000.0,0.00024658,2]
[366029685,1750023041394,-1000.0,0.00024658,2]
[366029686,1750023041403,-1000.0,0.00024658,2]
[366029687,1750023041413,-1000.0,0.00024658,2]
[366029688,1750023041422,-421.0,0.00024658,2]
[366029689,1750023041431,-206.43607375,0.00024669,11]
[366029690,1750023041440,-180.28427245,0.0002468,2]
[366029691,1750023041449,-421.0,0.00024685,2]
[366029692,1750023041459,-173.1114945,0.000247,2]
[366029693,1750023041468,-800.0,0.000247,2]
[366029694,1750023041477,-421.0,0.00024713,2]
[366029695,1750023041486,-173.1114945,0.00024733,2]
[366029696,1750023041496,-421.0,0.0002474,2]
[366029697,1750023041505,-206.43607375,0.00024746,11]
[366029698,1750023041514,-173.1114945,0.00024767,2]
[366029699,1750023041523,-170.0,0.00024767,2]
[366029700,1750023041533,-421.0,0.00024768,2]
[366029701,1750023041632,-609.27,0.0002477,3]
[366029702,1750023041667,-500.0,0.00024773,2]
[366029703,1750023041677,-600.0,0.00024773,2]
[366029704,1750023041687,-500.0,0.00024773,2]
[366029705,1750023041696,-304.64,0.00024776,3]
[366029706,1750023041706,-878.95,0.0002478,10]
[366029707,1750023041715,-157.26,0.0002478,10]
[366029708,1750023041725,-530.0,0.00024786,2]
[366029709,1750023041734,-500.0,0.00024789,30]
[366029710,1750023041743,-366.36,0.00024789,2]
[366029711,1750023041753,-500.0,0.00024789,2]
[366029712,1750023041762,-160.0,0.00024789,2]
[366029713,1750023041772,-14139.02044894,0.0002479,10]
[366029736,1750023048022,-35860.97955106,0.0002479,10]
[366029737,1750023048032,-12535.62630729,0.0002479,10]
[366029738,1750023048044,-500.0,0.0002479,5]
[366029739,1750023048055,-315.37997948,0.0002479,10]
[366029740,1750023048067,-835.55256958,0.0002479,10]
[366029741,1750023048076,-424.47602138,0.0002479,10]
[366029742,1750023048086,-421.0,0.00024795,2]
[366029743,1750023048097,-786.34,0.00024796,10]
[366029744,1750023048107,-2000.0,0.000248,2]
[366029745,1750023048116,-2000.0,0.000248,2]
[366029746,1750023048126,-318.21,0.000248,7]
[366029747,1750023048135,-332.2,0.000248,2]
[366029748,1750023048145,-151.0,0.000248,7]
[366029749,1750023048154,-624.249881,0.000248,2]
[366029750,1750023048165,-300.0,0.000248,5]
[366029751,1750023048174,-173.1114945,0.000248,2]
[366029752,1750023048184,-477.17,0.000248,31]
[366029753,1750023048194,-477.17,0.000248,31]
[366029754,1750023048204,-477.17,0.000248,31]
[366029755,1750023048213,-477.17,0.000248,31]
[366029756,1750023048223,-477.17,0.000248,31]
[366029757,1750023048233,-477.17,0.000248,31]
[366029758,1750023048243,-477.17,0.000248,31]
[366029759,1750023048252,-477.17,0.000248,31]
[366029760,1750023048261,-477.17,0.000248,31]
[366029761,1750023048271,-477.17,0.000248,31]
[366029762,1750023048280,-477.17,0.000248,31]
[366029763,1750023048289,-477.17,0.000248,31]
[366029764,1750023048299,-477.17,0.000248,31]
[366029765,1750023048308,-477.17,0.000248,31]
[366029766,1750023048317,-477.17,0.000248,31]
[366029767,1750023048327,-477.17,0.000248,31]
[366029768,1750023048337,-20222.4385257,0.000248,2]
[366029769,1750023048347,-5722.9366313,0.000248,2]
[366029770,1750023048357,-272.71486831,0.00024806,2]
[366029771,1750023048367,-10111.2192628,0.00024806,2]
[366029772,1750023048377,-5722.9366313,0.00024813,2]
[366029773,1750023048387,-421.0,0.00024822,2]
[366029774,1750023048397,-206.43607375,0.00024823,11]
[366029775,1750023048407,-624.249881,0.00024826,2]
[366029776,1750023048416,-624.249881,0.00024826,2]
[366029777,1750023048426,-151.0,0.00024826,7]
[366029778,1750023048436,-180.28427245,0.00024826,2]
[366029779,1750023048445,-32400.94848764,0.00024826,2]
[366029780,1750023048455,-5722.9366313,0.00024826,2]
[366029781,1750023048464,-679.73,0.00024849,4]
[366029782,1750023048473,-421.0,0.0002485,2]
[366029783,1750023048483,-200.0,0.0002486,11]
[366029784,1750023048492,-10111.2192628,0.0002486,2]
[366029785,1750023048501,-421.0,0.00024877,2]
[366029786,1750023048511,-624.249881,0.0002488,2]
[366029787,1750023048520,-624.249881,0.0002488,2]
[366029788,1750023048529,-168.0,0.00024882,2]
[366029789,1750023048539,-20222.4385257,0.0002489,2]
[366029790,1750023048547,-151.0,0.0002489,7]
[366029791,1750023048557,-424.16,0.00024895,2]
[366029792,1750023048567,-322.32400716,0.00024899,2]
[366029793,1750023048576,-28418.30443301,0.000249,7]
[366029794,1750023048586,-229.86375354,0.000249,7]
[366029795,1750023048596,-1047.78,0.000249,7]
[366029796,1750023048606,-2000.0,0.000249,2]
[366029797,1750023048615,-2000.0,0.000249,2]
[366029798,1750023048624,-184.41869322,0.000249,2]
[366029799,1750023048634,-52320.47260855,0.000249,2]
[366029804,1750023099104,923.83,0.00022095,2]
[366029806,1750023148961,158.980707,0.00013699,2]
[366029812,1750023303193,2435.38262674,0.00024925,120]
[366029855,1750023948141,-3165.10362053,0.00020952,2]
[366029865,1750024037104,-468.46208269,0.00020952,2]
[366029866,1750024037126,-500.0,0.00021164,2]
[366029867,1750024037147,-191.52613081,0.0002149,2]
[366029868,1750024037169,-569.38118797,0.0002159,2]
[366029870,1750024050098,-1200.0,0.00021607,2]
[366029871,1750024050119,-400.0,0.00022783,2]
[366029872,1750024050140,-317.77774108,0.00022783,2]
[366029873,1750024050160,-430.0,0.00022783,2]
[366029874,1750024050181,-440.0,0.00022783,2]
[366029875,1750024050203,-150.0,0.000228,2]
[366029876,1750024050225,-300.0,0.00022897,2]
[366029877,1750024050245,-300.0,0.00022898,2]
[366029878,1750024050267,-300.0,0.00022899,2]
[366029879,1750024050286,-160.0,0.00023296,2]
[366029880,1750024050308,-229.86375354,0.00023296,2]
[366029881,1750024050330,-835.55256958,0.00023299,2]
[366029882,1750024050350,-964.0,0.00023346,2]
[366029883,1750024050371,-653.0,0.00023346,2]
[366029884,1750024050392,-2160.0,0.00023346,2]
[366029885,1750024050413,-517.913,0.00023346,2]
[366029886,1750024050434,-317.23587308,0.00023356,2]
[366029887,1750024050454,-848.83,0.000235,2]
[366029888,1750024050475,-207.4,0.00023575,2]
[366029889,1750024050495,-424.6,0.00023652,2]
[366029891,1750024050515,-460.0,0.00023653,2]
[366029892,1750024050535,-5000.0,0.0002386,2]
[366029893,1750024050556,-460.0,0.00023874,2]
[366029894,1750024050576,-460.0,0.00023874,2]
[366029895,1750024050598,-460.0,0.00023874,2]
[366029896,1750024050620,-460.0,0.00023874,2]
[366029897,1750024050642,-460.0,0.00023874,2]
[366029898,1750024050667,-460.0,0.00023874,2]
[366029899,1750024050690,-460.0,0.00023874,2]
[366029900,1750024050712,-133.34010442,0.00023888,2]
[366029902,1750024051072,-5651.77381701,0.00021064,2]
[366029903,1750024051094,-326.65989558,0.00023888,2]
[366029904,1750024051114,-460.0,0.00023888,2]
[366029905,1750024051134,-460.0,0.00023888,2]
[366029906,1750024051157,-560.69054575,0.00023888,2]
[366029907,1750024051176,-194.96359167,0.00023889,2]
[366029908,1750024051197,-460.0,0.00023889,2]
[366029909,1750024051216,-460.0,0.00023889,2]
[366029910,1750024051237,-460.0,0.00023889,2]
[366029911,1750024051257,-460.0,0.00023889,2]
[366029912,1750024051285,-243.12749871,0.000239,10]
[366029913,1750024051312,-243.12749871,0.00023934,10]
[366029914,1750024051339,-243.12749871,0.00023969,10]
[366029915,1750024051365,-243.12749871,0.00024003,10]
[366029916,1750024051391,-243.12749871,0.00024038,10]
[366029917,1750024051419,-243.12749871,0.00024072,10]
[366029918,1750024051444,-243.12749871,0.00024107,10]
[366029919,1750024051469,-243.12749871,0.00024141,10]
[366029920,1750024051492,-460.0,0.00024148,2]
[366029921,1750024051516,-460.0,0.00024148,2]
[366029922,1750024051539,-460.0,0.00024148,2]
[366029923,1750024051562,-460.0,0.00024148,2]
[366029924,1750024051584,-460.0,0.00024163,2]
[366029925,1750024051612,-243.12749871,0.00024176,10]
[366029926,1750024051640,-243.12749871,0.0002421,10]
[366029927,1750024051670,-243.12749871,0.00024245,10]
[366029928,1750024051698,-243.12749871,0.00024279,10]
[366029929,1750024051725,-243.12749871,0.00024314,10]
[366029930,1750024051752,-243.12749871,0.00024348,11]
[366029931,1750024051778,-243.12749871,0.00024383,11]
[366029932,1750024051799,-897.75926,0.00024401,3]
[366029933,1750024051825,-243.12749871,0.00024417,11]
[366029934,1750024051993,-525.1,0.00024422,2]
[366029935,1750024052019,-333.9922625,0.00024422,2]
[366029938,1750024162085,-919.59,0.00021821,2]
[366029939,1750024214404,907.88,0.00021989,2]
[366029953,1750024231820,-1229.76094,0.00023803,2]
[366029954,1750024231830,-835.55256958,0.00023804,2]
[366029955,1750024231839,-160.0,0.00023804,2]
[366029956,1750024231849,-460.0,0.00023873,2]
[366029957,1750024231859,-460.0,0.00023888,2]
[366029958,1750024231869,-460.0,0.00023888,2]
[366029959,1750024231880,-420.0,0.00023888,2]
[366029960,1750024231890,-1815.76,0.00023988,2]
[366029961,1750024231901,-460.0,0.00024147,2]
[366029962,1750024231911,-117.04967672,0.00024401,3]
[366030000,1750024237835,-351.67818006,0.000235,2]
[366030010,1750024237916,-412.27181994,0.000235,2]
[366030012,1750024237927,-317.54107461,0.00023888,2]
[366030016,1750024238388,-142.45892539,0.00023888,2]
[366030017,1750024238398,-652.45826028,0.00024401,3]
[366030018,1750024238407,-488.77,0.00024421,2]
[366030019,1750024238417,-460.0,0.00024422,2]
[366030020,1750024238427,-194.19940898,0.00024437,2]
[366030379,1750024243073,-454.17,0.00023873,2]
[366030381,1750024243083,-265.80059102,0.00024437,2]
[366030383,1750024243092,-1160.64048086,0.000246,2]
[366030619,1750024245791,-254.77268796,0.000246,2]
[366030625,1750024245852,-784.58683118,0.000246,2]
[366030627,1750024245861,-208.0,0.0002462,2]
[366030629,1750024245871,-460.0,0.0002465,2]
[366030631,1750024245880,-460.0,0.0002465,2]
[366030633,1750024245890,-681.06,0.00024651,6]
[366030634,1750024245899,-207.4,0.00024673,2]
[366030636,1750024245909,-61.26808762,0.00024687,2]
[366031561,1750024295595,873.22,0.00021971,2]
[366031563,1750024354718,165.20249,0.00013699,2]
[366031819,1750025251157,-5000.0,0.00020952,2]
[366031820,1750025251182,-180.348732,0.00021145,2]
[366031821,1750025251206,-190.6880448,0.00021522,2]
[366031822,1750025251238,-168.0,0.00021678,2]
[366031823,1750025251265,-168.0,0.00021724,2]